Cogmind - Beta 10.2 *** ADVENTURER MODE // 2020.12.26 @ 20:19:49 Player: Yog-Sothoth Result: Self-destructed Performance ------------- Evolutions (1) 500 Regions Visited (3) 600 Robots Destroyed (22) 110 Value Destroyed (423) 423 Prototype IDs (5) 100 Alien Tech Used (0) 0 Bonus (0) 0 TOTAL SCORE: 1733 Bonus ------- None Cogmind --------- Core Integrity 322/400 Matter 284/300 Energy 300/300 System Corruption 0% Temperature Cool (217) Movement Flying (37) Location -9/Materials Parts ------- > --- POWER (1) -------- (None) > --- PROPULSION (3) --- Flight Unit Flight Unit > --- UTILITY (3) ------ Medium Battery Weight Redist. System Hacking Suite > --- WEAPON (2) ------- Advanced Beam Cannon > --- INVENTORY (4) ---- Advanced Beam Cannon Peak State ------------ > --- POWER ------------ Improved Ion Engine > --- PROPULSION ------- Flight Unit Flight Unit Flight Unit > --- UTILITY ---------- Medium Battery Weight Redist. System Hacking Suite > --- WEAPON ----------- Advanced Beam Cannon Advanced Beam Cannon > --- INVENTORY -------- (None) [Rating: 17] Favorites ----------- Power Improved Ion Engine Engine Improved Ion Engine Propulsion Flight Unit Wheel Compact Wheel Flight Unit Flight Unit Utility Weight Redist. System Device Weight Redist. System Storage Small Storage Unit Hackware Hacking Suite Weapon Light Assault Rifle Energy Gun Small Laser Energy Cannon Particle Cannon Ballistic Gun Light Assault Rifle Special Weapon Mining Laser Build | -11 -10 -10 -9 ------- Run | Scr Mat Min Mat Slots Evolved 2 | . . . 2 Power . | . . . . Propulsion 1 | . . . 1 Utility 1 | . . . 1 Weapon . | . . . . Parts Attached 37 | 5 4 18 10 Power 2 | 1 1 . . Engine 2 | 1 1 . . Core . | . . . . Reactor . | . . . . Propulsion 10 | 2 . 6 2 Treads . | . . . . Leg . | . . . . Wheel 2 | 2 . . . Hover . | . . . . Flight 8 | . . 6 2 Utility 7 | 1 1 2 3 Device 4 | . 1 2 1 Storage 2 | 1 . . 1 Processor . | . . . . Hackware 1 | . . . 1 Protection . | . . . . Artifact . | . . . . Weapon 18 | 1 2 10 5 Energy Gun 1 | . . 1 . Energy Cannon 6 | . 1 . 5 Ballistic Gun 9 | 1 1 7 . Ballistic Cannon . | . . . . Launcher . | . . . . Special Weapon 2 | . . 2 . Impact Weapon . | . . . . Slashing Weapon . | . . . . Piercing Weapon . | . . . . Special Melee Weapon . | . . . . Unidentified Prototypes 1 | . . . 1 Parts Lost 4 | . . 1 3 Power 1 | . . . 1 Propulsion 2 | . . . 2 Utility 1 | . . 1 . Weapon . | . . . . Highest Loss Streak 2 | . . 1 2 Average Slot Usage (%) 94 | . 92 96 91 Engine 13 | . 14 14 11 Wheel 10 | . 28 5 . Flight 17 | . . 22 28 Device 19 | . 13 22 18 Storage 6 | . 14 2 7 Energy Cannon 2 | . . 2 2 Ballistic Gun 17 | . 20 16 16 Special Weapon 4 | . . 7 . Naked Turns . | . . . . Heaviest Build 18 | 11 18 18 13 Greatest Support 32 | 32 32 32 18 Greatest Overweight (x) 4 | . . 4 1 Average Overweight (x) . | . . . . Largest Inventory Capacity 6 | 6 6 6 4 Average Capacity 4 | 5 6 4 4 Most Carried 6 | 3 6 6 4 Average Carried 3 | 1 4 3 3 Final Capacity 6 | 6 6 4 4 Final Carried 5 | 3 5 3 1 Class Distribution -------------------- 79% | Mutant 15% | Scavenger-Mutant 4% | Hacker-Mutant Dominant Class ---------------- Mutant | -10/Materials Mutant | -10/Mines Scavenger-Mutant | -9/Materials Resources | -11 -10 -10 -9 ----------- Run | Scr Mat Min Mat Matter Collected 710 | 241 133 189 147 Remotely 36 | . . . 36 Salvage Created 596 | . 129 118 349 Parts 49 | . 5 17 27 Haulers Intercepted 2 | . 1 . 1 Recyclers Shooed 1 | . . . 1 Parts Field Recycled . | . . . . Retrieved Matter . | . . . . Parts Self-Destructed . | . . . . Prevented . | . . . . Kills | -11 -10 -10 -9 ------- Run | Scr Mat Min Mat Combat Hostiles Destroyed 19 | . 2 9 8 Guns 14 | . 2 8 4 Cannons 5 | . . 1 4 Classes Destroyed 5 | . 2 1 2 Hauler 2 | . 1 . 1 Operator 1 | . . . 1 Swarmer 12 | . . 9 3 Grunt 5 | . 2 . 3 Sentry 2 | . . . 2 Best Kill Streak 4 | . 2 3 4 Combat Bots Only 4 | . 2 3 4 Max Kills in Single Turn 1 | . 1 1 1 Gunslinging . | . . . . Exploded . | . . . . Melee . | . . . . Uniques/NPCs Destroyed . | . . . . Combat | -11 -10 -10 -9 -------- Run | Scr Mat Min Mat Damage Taken 534 | . 52 92 390 Core 104 | . . 26 78 Absorbed by Shields . | . . . . Core Remaining (%) 94 | 100 . 89 . Volleys Fired 85 | . 26 20 39 Largest 2 | . 2 2 2 Hottest 100 | . 40 100 68 Shots Fired 145 | . 52 30 63 Gun 120 | . 52 20 48 Cannon 19 | . . 4 15 Launcher . | . . . . Special 6 | . . 6 . Kinetic 116 | . 52 16 48 Thermal 29 | . . 14 15 Explosive . | . . . . Electromagnetic . | . . . . Robot Hit Streak 11 | . 8 4 11 Robot Miss Streak 3 | . 1 3 2 Penetration Max . | . . . . Secondary Targets 1 | . 1 . . Max Gunslinging Chain 1 | . 1 . . Shots Hit Robots 105 | . 41 15 49 Core Hits 40 | . 8 12 20 Critical Hits 3 | . 1 . 2 Critical Kills . | . . . . Critical Parts Destroyed 3 | . 1 . 2 Melee Attacks . | . . . . Impact . | . . . . Slashing . | . . . . Piercing . | . . . . Sneak Attacks . | . . . . Combat Hostiles . | . . . . Follow-up Attacks . | . . . . Damage Inflicted 1066 | . 384 168 514 Guns 781 | . 384 127 270 Cannons 285 | . . 41 244 Explosions . | . . . . Melee . | . . . . Ramming . | . . . . Kinetic 748 | . 384 94 270 Thermal 318 | . . 74 244 Explosive . | . . . . Electromagnetic . | . . . . Impact . | . . . . Slashing . | . . . . Piercing . | . . . . Highest Corruption . | . . . . Average Corruption . | . . . . Corruption Purged . | . . . . Overload Shots . | . . . . Overflow Damage 2 | . . 1 1 Projectiles 2 | . . 1 1 Explosions . | . . . . Melee . | . . . . Knockbacks . | . . . . Impact . | . . . . Kinetic . | . . . . Secondary . | . . . . Self-Inflicted Damage . | . . . . Shots . | . . . . Rammed . | . . . . Targets Rammed . | . . . . Kicked . | . . . . Crushed . | . . . . Highest Temperature 282 | . 9 120 282 Average Temperature 77 | . 8 34 105 Received Heat Transfer 201 | . 36 . 165 Effects 4 | . . . 4 Interference 4 | . . . 4 Siege Activations . | . . . . Robots Corrupted . | . . . . Combat Hostiles . | . . . . Parts Fried . | . . . . Impact Corruptions . | . . . . Robots Melted . | . . . . Combat Hostiles . | . . . . Parts Melted 1 | . . . 1 Heat Transferred 593 | . . 149 444 Parts Sabotaged . | . . . . Parts Stolen . | . . . . Parts Stripped . | . . . . Power Chain Reactions . | . . . . Missiles Intercepted . | . . . . Alert | -11 -10 -10 -9 ------- Run | Scr Mat Min Mat Peak Influence 327 | . 64 210 327 Initial . | . . . . Average 39 | . 23 29 117 Maximum Alert Level 1 | . . 1 1 Low Security (%) 94 | 100 100 94 85 Level 1 5 | . . 5 14 Level 2 . | . . . . Level 3 . | . . . . Level 4 . | . . . . Level 5 . | . . . . High Security . | . . . . Max Security . | . . . . Squads Dispatched 5 | . 1 . 4 Investigation 1 | . 1 . . Extermination . | . . . . Reinforcement 4 | . . . 4 Assault . | . . . . Garrison . | . . . . Intercept . | . . . . Construction Impeded . | . . . . Haulers Reinforced . | . . . . Stealth | -11 -10 -10 -9 --------- Run | Scr Mat Min Mat Distress Signals 3 | . . . 3 Communications Jammed . | . . . . Distress Signals . | . . . . Times Spotted 34 | . 6 9 19 Peak Tracking Total 7 | . 6 3 7 Tactical Retreats 1 | . . . 1 Traps | -11 -10 -10 -9 ------- Run | Scr Mat Min Mat Traps Triggered 1 | . 1 . . Indirectly . | . . . . Trap Hack Attempts . | . . . . Triggered . | . . . . Disarmed . | . . . . Reprogrammed . | . . . . Reused . | . . . . Traps Extracted . | . . . . Installed . | . . . . Triggered . | . . . . Machines | -11 -10 -10 -9 ---------- Run | Scr Mat Min Mat Machines Disabled 1 | . . . 1 Max in Single Turn 1 | . . . 1 Machines Sabotaged . | . . . . Garrisons Compromised . | . . . . Overloaded Fab Kills . | . . . . Fab Network Shutdowns . | . . . . Hacking | -11 -10 -10 -9 --------- Run | Scr Mat Min Mat Machines Accessed 5 | . 3 . 2 Terminals 5 | . 3 . 2 Fabricators . | . . . . Repair Stations . | . . . . Recycling Units . | . . . . Scanalyzers . | . . . . Garrison Access . | . . . . Total Hacks 11 | . 7 . 4 Successful 9 | . 6 . 3 Failed 2 | . 1 . 1 Catastrophic . | . . . . Database Lockouts . | . . . . Manual . | . . . . Terminals 11 | . 7 . 4 Fabricators . | . . . . Repair Stations . | . . . . Recycling Units . | . . . . Scanalyzers . | . . . . Garrison Access . | . . . . Terminal Hacks 9 | . 6 . 3 Record 2 | . 1 . 1 Prototype ID Bank 2 | . 1 . 1 Dispatch Records 1 | . 1 . . Patrol Status 1 | . 1 . . Hauler Manifests 2 | . 1 . 1 Zone Layout 1 | . 1 . . Fabricator Hacks . | . . . . Repair Station Hacks . | . . . . Recycling Unit Hacks . | . . . . Scanalyzer . | . . . . Garrison Access Hacks . | . . . . Unauthorized Hacks . | . . . . Terminals . | . . . . Fabricators . | . . . . Repair Stations . | . . . . Recycling Units . | . . . . Scanalyzers . | . . . . Garrison Access . | . . . . Data Cores Recovered . | . . . . Used . | . . . . Hacking Detections 3 | . 1 . 2 Full Trace Events . | . . . . Feedback Events . | . . . . Feedback Blocked . | . . . . Robot Schematics Acquired . | . . . . Robots Built . | . . . . Matter . | . . . . Time . | . . . . Total Robot Build Rating . | . . . . Part Schematics Acquired . | . . . . Parts Built . | . . . . Matter . | . . . . Time . | . . . . Total Part Build Rating . | . . . . Parts Repaired . | . . . . Time . | . . . . Parts Recycled . | . . . . Recycled Matter . | . . . . Retrieved Matter . | . . . . Retrieved Components . | . . . . Parts Scanalyzed . | . . . . Part Schematics Acquired . | . . . . Parts Damaged . | . . . . Bothacking | -11 -10 -10 -9 ------------ Run | Scr Mat Min Mat Used RIF Installer . | . . . . Robots Hacked . | . . . . Non-combat . | . . . . Combat . | . . . . Robot Hacks Applied . | . . . . Relay Couplers Released . | . . . . Robots Rewired . | . . . . Allies Hacked . | . . . . Hacks Repelled . | . . . . Allies | -11 -10 -10 -9 -------- Run | Scr Mat Min Mat Total Allies . | . . . . Largest Group . | . . . . Highest-Rated Group . | . . . . Highest-Rated Ally . | . . . . Total Orders . | . . . . Ally Attacks . | . . . . Total Damage . | . . . . Kills . | . . . . Allies Corrupted . | . . . . Allies Melted . | . . . . Intel | -11 -10 -10 -9 ------- Run | Scr Mat Min Mat Robot Analysis Total . | . . . . Derelict Logs Recovered 2 | . . 2 . Drone Launches . | . . . . Drone Recoveries . | . . . . Exploration | -11 -10 -10 -9 ------------- Run | Scr Mat Min Mat Turns Passed 1879 | 64 458 1101 256 Spaces Moved 1470 | 56 293 877 244 Core 4 | 4 . . . Treads . | . . . . Legs . | . . . . Wheels 494 | 52 293 149 . Hover . | . . . . Flight 972 | . . 728 244 Fastest Speed 34 | 50 100 37 34 Average Speed 58 | 96 100 48 39 Slowest Speed 360 | 100 100 360 120 Overloaded Moves . | . . . . Propulsion Burnouts . | . . . . Robots Hopped 14 | . . 12 2 Cave-ins Triggered . | . . . . Exploration Rate (%) 41 | 5 40 100 20 Regions Visited 3 Branch Regions 1 Pre-discovered Areas . | . . . . Known Exits Taken . | . . . . Unknown Exits Taken 3 | 1 1 1 . Scrap Searched 2 | . . 2 . Spaces Dug 4 | . . 4 . Terrain Destroyed 4 | . . 4 . Melee . | . . . . Projectile 4 | . . 4 . AOE . | . . . . Terrain Rammed . | . . . . Walls Destroyed . | . . . . Machines Disabled . | . . . . Actions | -11 -10 -10 -9 --------- Run | Scr Mat Min Mat Total 2333 | 63 412 1508 350 Wait 706 | . 80 581 45 Move 1439 | 55 292 852 240 Hop 14 | . . 12 2 Pick Up 18 | 3 6 5 4 Fast Attach 16 | 5 1 6 4 Attach 8 | . 2 2 4 Detach 4 | . . 2 2 Swap 13 | . 1 10 2 Drop 30 | . 4 18 8 Fire 85 | . 26 20 39 Melee . | . . . . Ram . | . . . . Kick . | . . . . Crush . | . . . . Escape Stasis . | . . . . Rewire . | . . . . Trap . | . . . . Miscellaneous . | . . . . Route ------- -11/Scrapyard -10/Materials (discovered 3 exits: *Mat / [*Min x2]) -10/Mines (discovered 2 exits: *Mat x2) -9/Materials History --------- Turn | Location | Event 3 | -11/Scrapyard | Discovered new exit (range 15) 65 | -11/Scrapyard | Entered Materials 114 | -10/Materials | Discovered new exit (range 6) 157 | -10/Materials | Discovered new exit (range 12) 312 | -10/Materials | Build established: Mutant 478 | -10/Materials | Discovered new exit (range 16) 523 | -10/Materials | Entered Mines 595 | -10/Mines | Discovered new exit (range 9) 641 | -10/Mines | Learned Materials security intel 835 | -10/Mines | Discovered new exit (range 9) 907 | -10/Mines | Learned Materials emergency access door positions 1624 | -10/Mines | Entered Materials 1624 | -9/Materials | Evolved 2 slots: Propulsion x1, Utility x1 1880 | -9/Materials | Self-destructed Last Messages --------------- Destroyed Flight Unit. S-10 Pest destroyed. Overheating: System interference. Adv. Beam Cannon temporarily disabled. Y-45 Defender destroyed. Dropped Adv. Beam Cannon. Acquired 10 matter. Acquired Flight Unit. Overheating: System interference. Adv. Beam Cannon temporarily disabled. Weight Redist. System temporarily disabled. Acquired 1 matter. Acquired 13 matter. Flight Unit melted. S-10 Pest destroyed. L-31 Rogue suffers critical hit. Destroyed Imp. Ion Engine. Flight Unit destroyed. Processing Tank disabled. Imp. Ion Engine destroyed. Map ----- +----------------------------------------------------+ | ?????????????????????????# #???????????????????? | | ?????????????????????????# #???????????????????? | | ?????????????????????????# +???????????????????? | | ?????????????????????????# #???????????????????? | | ?????????????????????????# !#???????????????????? | | ?????????????????????????# #?????????????+?????? | | ?????############????????### #???????????????????? | | ?????# #??????????#%#???????????????????? | | ?????# #??????????# #?????????????????+?? | | ###### ############ #???????????????????? | | #???????????????????? | | ######## ###### #???????????????????? | | " #??????# #????# #???????????????????? | | " #??????# #????# #???????????????????? | | " #??????# #####/###### #???????????????????? | | " #?????##+## "T" ## #???????????????????? | | " #?? ?# * ] # ???????????????????? | | # ??# # ???????????????????? | | + ??????# # ???????????????????? | | #?????????# [# ???????????????????? | | #?????????# """ # ???????????????????? | | +##### #??????#= """ # ???????????????????? | | #??### #?????##%! """ # ???????????????????? | | #??????#?????# =* + ???????????????????? | | #????????????######g#### ???????????????????? | | #?????????????# [%=@#? ????????????????????? | | []#?????????????# """"gl#?? ???????????????????? | | [!#?????????????# """"" #??????????????????????? | | ####?????????????#! """""g/??????????????????????? | | #????????????????# #??????????????????????? | | ##???????????????# """"" #??????????????????????? | | #???????????????#] """"" #??????????????????????? | | !+???????????????#?????"" #??????????????????????? | | #?????????????????????? #??????????????????????? | | ##??????????????????????###??????????????????????? | | ?????????????????????????????????????????????????? | | ?????????????????????????????????????????????????? | | ?????????????????????????????????????????????????? | | ?????????????????????????????????????????????????? | | ?????????????????????????????????????????????????? | | ?????????????????????????????????????????????????? | | ?????????????????????????????????????????????????? | | ?????????????????????????????????????????????????? | | ?????????????????????????????????????????????????? | | ?????????????????????????????????????????????????? | | ?????????????????????????????????????????????????? | | ?????????????????????????????????????????????????? | | ?????????????????????????????????????????????????? | | ?????????????????????????????????????????????????? | | ?????????????????????????????????????????????????? | +----------------------------------------------------+ Best States ------------- Heat Dissipation 42 Energy Generation 12 Energy Capacity 465 Matter Stores 300 Matter Capacity 300 Sight Range 16 Robot Scan Range 10 Terrain Scan Density 10 Additional Mass Support 6 Resistance: KI 20 Resistance: TH 20 Resistance: EX 20 Resistance: EM 20 Resistance: I 20 Resistance: S 20 Resistance: P 20 Evasion (%) 63 Offensive Hacking 20 Item Schematics ----------------- None Robot Schematics ------------------ None Fabricated ------------ Nothing Alien Tech Used ----------------- None Achievements -------------- None Challenges ------------ None Game ------ Seed ThiefAbsorptionScrap Manual? 0 Play Time 00:34:37 Cumulative 1.5 hours Start 2020.12.26 @ 19:45:43 End 2020.12.26 @ 20:19:49 Sessions 1 Manual Loads 0 Difficulty Adventurer Special Mode None Game No. 4 Rogue 0 Adventurer 4 Explorer 0 Win Type - Total 0 Types 0/0/0/0/0/0/0/0/0 Lore% 4 Gallery% 6 Achievement% 5 Wizard Run 0 Options --------- ASCII 0 Keyboard 0 Movement Mouse Keybinds 0 Fullscreen 2 Font 20/SmallcapsGlow Map View 66x50 Tactical HUD 0 Map Filters NONE Filters NONE Steam 1 RUN: 39f85883-b19e-4382-bbae-eca4e98ed2a9